bitfinex/quotes_BTCUSD_20251104
["timestamp","ask_amount","ask_price","bid_price","bid_amount"]
[1762253217169,0.32935837,103870.0,103860.0,0.24371]
[1762253217382,0.32935837,103870.0,103850.0,0.03922976]
[1762253217519,0.32935837,103870.0,103850.0,0.03722976]
[1762253217871,0.32935837,103870.0,103860.0,0.002]
[1762253218063,0.35736837,103870.0,103860.0,0.002]
[1762253218223,0.35636837,103870.0,103850.0,0.03322976]
[1762253218629,0.35736837,103870.0,103860.0,0.004]
[1762253218849,0.35736837,103870.0,103840.0,0.2366867]
[1762253219066,0.35636837,103870.0,103840.0,0.24877561]
[1762253219233,0.35636837,103870.0,103850.0,0.34]
[1762253219421,0.16482,103870.0,103850.0,0.53658383]
[1762253219620,0.35736884,103870.0,103850.0,0.346]
[1762253219832,0.02801,103860.0,103850.0,0.342]
[1762253220235,0.02801,103860.0,103850.0,0.002]
[1762253220437,0.31322691,103860.0,103850.0,0.002]
[1762253220638,0.328696,103860.0,103850.0,0.002]
[1762253221077,0.19258545,103850.0,103840.0,0.00312876]
[1762253221345,0.32839545,103850.0,103840.0,0.00112876]
[1762253222100,0.19261447,103840.0,103810.0,0.11905171]
[1762253222296,0.04316,103830.0,103820.0,0.19263914]
[1762253223339,0.04263042,103830.0,103810.0,0.13217168]
[1762253223746,0.04263042,103830.0,103820.0,0.002]
[1762253223747,0.03763042,103830.0,103820.0,0.002]
[1762253223920,0.03763042,103830.0,103810.0,0.35311997]
[1762253224124,0.03763042,103830.0,103810.0,0.5457503]
[1762253224327,0.09218042,103830.0,103810.0,0.5457503]
[1762253224699,0.09218042,103830.0,103820.0,0.1926411]
[1762253224873,0.03963042,103830.0,103820.0,0.2016411]
[1762253225283,0.03763042,103830.0,103820.0,0.1926411]
[1762253225486,0.03763042,103830.0,103810.0,0.52209816]
[1762253225643,0.05063042,103830.0,103810.0,0.26830819]
[1762253225846,0.05063042,103830.0,103820.0,0.1926411]
[1762253226101,0.03763042,103830.0,103820.0,0.1926411]
[1762253226297,0.05063042,103830.0,103820.0,0.1926411]
[1762253227051,0.04163042,103830.0,103820.0,0.20518826]
[1762253227267,0.04163042,103830.0,103820.0,0.20718826]
[1762253227679,0.13428042,103830.0,103820.0,0.35454716]
[1762253227898,0.08256,103820.0,103810.0,0.34]
[1762253228143,0.12066,103820.0,103810.0,0.35276728]
[1762253228560,0.3133011,103820.0,103810.0,0.01276728]
[1762253228770,0.3133011,103820.0,103810.0,0.00072437]
[1762253229363,0.3133011,103820.0,103810.0,0.00272437]
[1762253229760,0.3133011,103820.0,103810.0,0.00072437]
[1762253230120,0.12166,103820.0,103810.0,0.00072437]
[1762253230347,0.12166,103820.0,103810.0,0.01303494]
[1762253230978,0.12366,103820.0,103810.0,0.36203494]
[1762253231133,0.12366,103820.0,103810.0,0.5546946]
[1762253231343,0.11027,103820.0,103810.0,0.35303494]
[1762253231680,0.16682,103820.0,103810.0,0.5536946]
[1762253232092,0.16482,103820.0,103810.0,0.5456946]
[1762253232536,0.16582,103820.0,103810.0,0.5546946]
[1762253234510,0.12266,103820.0,103810.0,0.5546946]
[1762253234678,0.16582,103820.0,103810.0,0.5546946]
[1762253235178,0.16582,103820.0,103810.0,0.36203494]
[1762253235383,0.16582,103820.0,103810.0,0.5546946]
[1762253235580,0.06811,103820.0,103810.0,0.5562746]
[1762253235799,0.07317,103820.0,103810.0,0.5562746]
[1762253236337,0.002,103820.0,103810.0,0.5578546]
[1762253236538,0.04516,103820.0,103810.0,0.5888081]
[1762253236949,0.04516,103820.0,103810.0,0.5872281]
[1762253237195,0.04516,103820.0,103810.0,0.5562746]
[1762253238003,0.002,103820.0,103810.0,0.7888081]
[1762253238343,0.002,103820.0,103810.0,0.81772377]
[1762253238495,0.002,103820.0,103810.0,0.85390605]
[1762253238895,0.21220516,103880.0,103850.0,0.19258545]
[1762253238896,0.07902364,103880.0,103850.0,0.19258545]
[1762253239109,0.0268,103870.0,103840.0,0.23983173]
[1762253239284,0.0268,103870.0,103850.0,0.02737]
[1762253239485,0.0268,103870.0,103850.0,0.55995448]
[1762253239704,0.03835,103860.0,103850.0,0.36737]
[1762253239990,0.03835,103860.0,103850.0,0.36837]
[1762253239991,0.00014066,103860.0,103850.0,0.36837]
[1762253240368,0.00014066,103860.0,103850.0,0.36737]
[1762253241002,0.00114066,103860.0,103850.0,0.56195545]
[1762253241753,0.00114066,103860.0,103850.0,0.65625545]
[1762253242466,0.00414066,103860.0,103850.0,0.65625545]
[1762253242823,0.00014066,103860.0,103850.0,0.65425545]
[1762253243018,0.00014066,103860.0,103850.0,0.65525545]
[1762253243224,0.00214066,103860.0,103850.0,0.66425545]
[1762253243761,0.09423066,103860.0,103850.0,0.37737]
[1762253243897,0.04049066,103860.0,103850.0,0.37737]
[1762253245446,0.28679757,103860.0,103850.0,0.01]
[1762253246036,0.33741223,103860.0,103850.0,0.01]
[1762253246340,0.48907356,103860.0,103850.0,0.01]
[1762253246753,1.18643527,103860.0,103850.0,0.001]
[1762253246976,1.18743527,103860.0,103850.0,0.005]
[1762253247408,1.18643527,103860.0,103850.0,0.001]
[1762253247836,1.18943527,103860.0,103850.0,0.002]
[1762253248040,1.52943527,103860.0,103850.0,0.001]
[1762253248244,0.192604,103840.0,103830.0,0.00024141]
[1762253248457,0.257754,103840.0,103830.0,0.00024141]
[1762253248658,0.311494,103840.0,103830.0,0.00024141]
[1762253249476,0.312494,103840.0,103830.0,0.00424141]
[1762253249728,0.11989,103840.0,103830.0,0.00424141]
[1762253249936,0.312494,103840.0,103830.0,0.00424141]
[1762253251721,0.313494,103840.0,103830.0,0.00424141]
[1762253257869,0.12089,103840.0,103830.0,0.00424141]
[1762253258082,0.313494,103840.0,103830.0,0.00424141]
[1762253258657,0.12089,103840.0,103830.0,0.00424141]
[1762253259108,0.313494,103840.0,103830.0,0.00424141]
[1762253261561,0.06715,103840.0,103830.0,0.06734141]
[1762253261766,0.002,103840.0,103830.0,0.46167141]
[1762253261985,0.002,103840.0,103830.0,0.40734141]
[1762253263232,0.002,103840.0,103830.0,0.46167141]
[1762253263434,0.002,103840.0,103830.0,0.65429396]
[1762253263755,0.002,103840.0,103830.0,0.40734141]
[1762253265320,0.03782,103840.0,103830.0,0.37090141]
[1762253266366,0.230424,103840.0,103830.0,0.37090141]
[1762253266574,0.282424,103840.0,103830.0,0.00424141]
[1762253266772,0.08982,103840.0,103830.0,0.00424141]
[1762253267735,0.002,103840.0,103830.0,0.65305396]
[1762253268046,0.002,103840.0,103830.0,0.59689396]
[1762253270105,0.002,103840.0,103830.0,0.65305396]
[1762253270964,0.05214066,103860.0,103840.0,0.19259993]
[1762253271396,0.05214066,103860.0,103850.0,0.34]
[1762253271767,0.08796066,103860.0,103850.0,0.34]
[1762253272168,0.28052757,103860.0,103850.0,0.34]
[1762253272362,0.28452757,103860.0,103840.0,0.002]
[1762253272667,0.02743,103850.0,103840.0,0.002]
[1762253272863,0.02743,103850.0,103830.0,0.62270508]
[1762253273092,0.02743,103850.0,103840.0,0.35369]
[1762253274414,0.06325,103850.0,103840.0,0.35369]
[1762253274642,0.11525,103850.0,103840.0,0.35369]
[1762253274814,0.06325,103850.0,103840.0,0.35369]
[1762253275043,0.06525,103850.0,103840.0,0.35469]
[1762253275262,0.30983545,103850.0,103840.0,0.341]
[1762253275470,0.31083545,103850.0,103840.0,0.341]
[1762253275807,0.11825,103850.0,103840.0,0.001]
[1762253276004,0.31083545,103850.0,103840.0,0.001]
[1762253276598,0.11825,103850.0,103840.0,0.001]
[1762253276808,0.31083545,103850.0,103840.0,0.001]
[1762253279396,0.11825,103850.0,103840.0,0.001]
[1762253280962,0.31083545,103850.0,103840.0,0.001]
[1762253282269,0.003,103850.0,103840.0,0.299434]
[1762253282632,0.00033562,103850.0,103840.0,0.299434]
[1762253283220,0.00014066,103860.0,103850.0,0.53258545]
[1762253283421,0.00014066,103860.0,103850.0,0.56856545]
[1762253283623,0.00014066,103860.0,103850.0,0.65204545]
[1762253284971,0.02614066,103860.0,103850.0,0.65504545]
[1762253285390,0.02614066,103860.0,103850.0,0.46246]
[1762253285593,0.14139066,103860.0,103850.0,0.343]
[1762253285791,0.14139066,103860.0,103850.0,0.003]
[1762253285792,0.37009469,103860.0,103850.0,0.003]
[1762253285992,0.37013985,103860.0,103850.0,0.003]
[1762253286292,0.94936513,103860.0,103850.0,0.003]
[1762253286491,0.22878628,103840.0,103830.0,0.00024141]
[1762253286685,0.27460627,103840.0,103830.0,0.00024141]
[1762253286885,0.42208534,103840.0,103830.0,0.00024141]
[1762253287131,0.43208533,103840.0,103830.0,0.00024141]
[1762253287360,0.31660628,103840.0,103830.0,0.00024141]
[1762253287562,0.34553442,103840.0,103830.0,0.00024141]
[1762253287686,0.31660628,103840.0,103830.0,0.00024141]
[1762253288224,0.31960628,103840.0,103830.0,0.00724141]
[1762253289413,0.31860628,103840.0,103830.0,0.00724141]
[1762253289852,0.31760628,103840.0,103830.0,0.00324141]
[1762253290051,0.31860628,103840.0,103830.0,0.00824141]
[1762253290285,0.08982,103840.0,103830.0,0.00824141]
[1762253290495,0.08982,103840.0,103830.0,0.54286396]
[1762253290653,0.32524498,103860.0,103830.0,0.40027141]
[1762253290654,0.24458688,103850.0,103830.0,0.40027141]
[1762253290853,0.052,103850.0,103830.0,0.64905118]
[1762253291052,0.052,103850.0,103830.0,0.65105118]
[1762253291541,0.07957066,103860.0,103840.0,0.284744]
[1762253291741,0.07957066,103860.0,103840.0,0.43214]
[1762253291872,0.03582,103850.0,103840.0,0.37598]
[1762253292092,0.08782,103850.0,103840.0,0.34]
[1762253292253,0.28040545,103850.0,103840.0,0.34]
[1762253292454,0.28040545,103850.0,103830.0,0.37029141]
[1762253292659,0.28040614,103850.0,103830.0,0.37029141]
[1762253292877,0.28040614,103850.0,103830.0,0.36429141]
[1762253293091,0.08782,103850.0,103830.0,0.61307289]
[1762253293301,0.001,103840.0,103830.0,0.62207289]
[1762253293504,0.03782,103850.0,103840.0,0.192604]
[1762253293732,0.002,103850.0,103840.0,0.192604]
[1762253293955,0.03782,103850.0,103840.0,0.192604]
[1762253294153,0.03582,103850.0,103830.0,0.61307289]
[1762253294552,0.003,103840.0,103830.0,0.62407289]
[1762253294910,0.002,103840.0,103830.0,0.65768289]
[1762253295319,0.002,103840.0,103830.0,0.46506141]
[1762253295515,0.002,103840.0,103830.0,0.40890141]
[1762253296141,0.2712285,103860.0,103830.0,0.64565396]
[1762253296340,0.19258643,103850.0,103830.0,0.41642141]
[1762253296579,0.24367643,103850.0,103830.0,0.41642141]
[1762253296802,0.001,103840.0,103830.0,0.41942141]
[1762253296948,0.001,103840.0,103830.0,0.42542141]
[1762253297160,0.001,103840.0,103830.0,0.46203141]
[1762253297566,0.24367643,103850.0,103830.0,0.06090141]
[1762253298120,0.03726,103840.0,103830.0,0.03429141]
[1762253298296,0.08835,103840.0,103830.0,0.03429141]
[1762253298497,0.03726,103840.0,103830.0,0.03429141]
[1762253299234,0.002,103840.0,103830.0,0.26352396]
[1762253299375,0.05109,103850.0,103830.0,0.30765396]
[1762253299573,0.24567973,103850.0,103830.0,0.12103141]
[1762253299774,0.24567973,103850.0,103830.0,0.06690141]
[1762253300125,0.24367973,103850.0,103830.0,0.06090141]
[1762253300422,0.001,103840.0,103830.0,0.06390141]
[1762253300600,0.194604,103840.0,103830.0,0.06890141]
[1762253300743,0.002,103840.0,103830.0,0.07090141]
[1762253300944,0.24367973,103850.0,103830.0,0.06290141]
[1762253301184,0.24567973,103850.0,103830.0,0.06890141]
[1762253301411,0.192604,103840.0,103830.0,0.06890141]
[1762253301539,0.227864,103840.0,103830.0,0.06890141]
[1762253301909,0.227864,103840.0,103830.0,0.03029141]
[1762253302581,0.227864,103840.0,103830.0,0.02429141]
[1762253302775,0.03526,103840.0,103830.0,0.02429141]
[1762253302984,0.03685413,103840.0,103830.0,0.03229141]
[1762253304091,0.03785413,103840.0,103830.0,0.03529141]
[1762253304476,0.08894413,103840.0,103830.0,0.35124141]
[1762253304995,0.28154813,103840.0,103830.0,0.35124141]
[1762253305590,0.08894413,103840.0,103830.0,0.35124141]
[1762253305808,0.28154813,103840.0,103830.0,0.35124141]
[1762253306710,0.32896214,103840.0,103830.0,0.35124141]
[1762253306884,0.36514442,103840.0,103830.0,0.01124141]
[1762253307960,0.31773041,103840.0,103830.0,0.01124141]
[1762253308164,0.15449979,103840.0,103830.0,0.01124141]
[1762253310117,0.20612979,103840.0,103830.0,0.01124141]
[1762253311205,0.30807097,103850.0,103840.0,0.34]
[1762253311206,0.19258545,103850.0,103840.0,0.34]
[1762253311636,0.27814545,103850.0,103840.0,0.34]
[1762253312061,0.27814545,103850.0,103830.0,0.02843141]
[1762253312261,0.27814545,103850.0,103830.0,0.36843141]
[1762253312419,0.24621545,103850.0,103840.0,0.007]
[1762253312599,0.19458545,103850.0,103840.0,0.007]
[1762253312800,0.192604,103840.0,103830.0,0.34024141]
[1762253313024,0.278164,103840.0,103830.0,0.34024141]
[1762253313232,0.278164,103840.0,103830.0,0.00724141]
[1762253313394,0.32543895,103840.0,103830.0,0.00724141]
[1762253313792,0.278164,103840.0,103830.0,0.00724141]
[1762253314237,0.278164,103840.0,103830.0,0.00024141]
[1762253314438,0.279164,103840.0,103830.0,0.00324141]
[1762253314873,0.31534628,103840.0,103830.0,0.00324141]
[1762253315024,0.31734628,103840.0,103830.0,0.01224141]
[1762253321550,0.31541066,103840.0,103830.0,0.01224141]
[1762253330308,0.03693,103840.0,103830.0,0.03708141]
[1762253330777,0.08522,103840.0,103830.0,0.01224141]
[1762253333121,0.277824,103840.0,103830.0,0.01224141]
[1762253333273,0.31400628,103840.0,103830.0,0.01224141]
[1762253333479,0.40029544,103840.0,103830.0,0.01224141]
[1762253333639,0.41029543,103840.0,103830.0,0.01224141]
[1762253333834,0.33400626,103840.0,103830.0,0.01224141]
[1762253334035,0.33400626,103840.0,103830.0,1.41e-06]
[1762253334237,0.19265966,103810.0,103800.0,0.34]
[1762253334481,0.19267822,103800.0,103780.0,0.07631]
[1762253334681,0.05057,103790.0,103780.0,0.02484]
[1762253334887,0.09886,103790.0,103770.0,0.09035929]
[1762253335138,0.03596,103780.0,103770.0,0.03888929]
[1762253335306,0.25559679,103790.0,103780.0,0.00120769]
[1762253335465,0.24353769,103790.0,103780.0,0.00120769]
[1762253335816,0.27949769,103790.0,103780.0,0.00120769]
[1762253336112,0.32778769,103790.0,103780.0,0.00120769]
[1762253336257,0.33778768,103790.0,103780.0,0.00120769]
[1762253336458,0.39416866,103790.0,103780.0,0.00120769]
[1762253336660,0.49964772,103790.0,103780.0,0.00120769]
[1762253337101,0.22891621,103770.0,103760.0,0.0002]
[1762253337303,0.27948621,103770.0,103760.0,0.0002]
[1762253337524,0.3377762,103770.0,103760.0,0.0002]
[1762253337684,0.34777619,103770.0,103760.0,0.0002]
[1762253337882,0.44325526,103770.0,103760.0,0.0002]
[1762253338088,0.1927525,103760.0,103750.0,0.0002]
[1762253338339,0.28700249,103760.0,103750.0,0.0002]
[1762253338695,0.31318478,103760.0,103750.0,0.0002]
[1762253339166,0.32318477,103760.0,103750.0,0.0002]
[1762253339376,0.12043228,103760.0,103750.0,0.0002]
[1762253339595,0.31318478,103760.0,103750.0,0.0002]
[1762253339960,0.32318477,103760.0,103750.0,0.0002]
[1762253340170,0.38888555,103760.0,103750.0,0.0002]
[1762253340374,0.32518477,103760.0,103750.0,0.0002]
[1762253340626,0.22895336,103750.0,103740.0,0.0002]
[1762253340798,0.22899053,103730.0,103720.0,0.0002]
[1762253341000,0.08585228,103730.0,103720.0,0.0002]
[1762253341228,0.09796,103730.0,103720.0,0.0002]
[1762253341358,0.04967,103730.0,103720.0,0.0002]
[1762253341756,0.04967,103730.0,103720.0,0.00068747]
[1762253341993,0.01371,103730.0,103720.0,0.03608747]
[1762253342201,0.01043604,103730.0,103720.0,0.03608747]
[1762253342984,0.04639604,103730.0,103720.0,0.00068747]
[1762253343181,0.24108049,103740.0,103720.0,0.00068747]
[1762253343386,0.00898,103730.0,103720.0,0.00668747]
[1762253343590,0.00898,103730.0,103720.0,0.00968747]
[1762253343785,0.00998,103730.0,103720.0,0.00968747]
[1762253344148,0.00998,103730.0,103720.0,0.00068747]
[1762253344149,0.00698,103730.0,103720.0,0.00068747]
[1762253344362,0.00698,103730.0,103720.0,0.00668747]
[1762253344549,0.00698,103730.0,103720.0,0.00968747]
[1762253344891,0.34778098,103750.0,103720.0,0.03608747]
[1762253344892,0.04989228,103750.0,103720.0,0.03608747]
[1762253345111,0.01371,103750.0,103730.0,0.0354]
[1762253345443,0.01371,103750.0,103740.0,0.08687]
[1762253345845,0.01371,103750.0,103740.0,0.0354]
[1762253346253,0.01371,103750.0,103740.0,0.08687]
[1762253346469,0.02159,103770.0,103740.0,0.42687]
[1762253346697,0.01461,103770.0,103760.0,0.0354]
[1762253346899,0.22397671,103790.0,103760.0,0.08687]
[1762253347100,0.02159,103790.0,103770.0,0.06024]
[1762253347299,0.21428693,103790.0,103770.0,0.06024]
[1762253347520,0.19271535,103780.0,103770.0,0.06024]
[1762253347728,0.21428693,103790.0,103770.0,0.06024]
[1762253347957,0.21428693,103790.0,103770.0,0.06038534]
[1762253348157,0.01461,103790.0,103780.0,0.0354]
[1762253348361,0.09547907,103810.0,103780.0,0.0354]
[1762253348515,0.001,103790.0,103780.0,0.0354]
[1762253348866,0.20067679,103790.0,103770.0,0.36698534]
[1762253349059,0.00798,103790.0,103770.0,0.02698534]
[1762253349259,0.00798,103790.0,103780.0,0.0354]
[1762253349260,0.001,103790.0,103780.0,0.0354]
[1762253349935,0.00698,103790.0,103770.0,0.07645534]
[1762253350115,0.00698,103790.0,103780.0,0.001]
[1762253350444,0.19967679,103790.0,103780.0,0.001]
[1762253350801,0.00698,103790.0,103780.0,0.001]
[1762253351224,0.00898,103790.0,103780.0,0.007]
[1762253351651,0.002,103790.0,103780.0,0.0424]
[1762253351853,0.002,103790.0,103780.0,0.09387]
[1762253352204,0.002,103790.0,103780.0,0.64585688]
[1762253352428,0.002,103790.0,103780.0,0.62658535]
[1762253353389,0.002,103790.0,103780.0,0.6405569]
[1762253353484,0.002,103790.0,103780.0,0.44784155]
[1762253353706,0.002,103790.0,103780.0,0.6405569]
[1762253354388,0.002,103790.0,103780.0,0.43387]
[1762253354851,0.002,103790.0,103780.0,0.3824]
[1762253355991,0.19923679,103790.0,103780.0,0.347]
[1762253356234,0.00654,103790.0,103780.0,0.347]
[1762253356707,0.00654,103790.0,103780.0,0.007]
[1762253357421,0.19923679,103790.0,103780.0,0.007]
[1762253357653,0.20377679,103790.0,103780.0,0.007]
[1762253358793,0.20377679,103790.0,103770.0,0.00038695]
[1762253358794,0.23889762,103780.0,103770.0,0.00038695]
[1762253359035,0.34345669,103780.0,103770.0,0.00038695]
[1762253359262,0.3334567,103780.0,103770.0,0.00038695]
[1762253360414,0.3394567,103780.0,103770.0,0.00338695]
[1762253360878,0.3364567,103780.0,103770.0,0.00138695]
[1762253361363,0.3364567,103780.0,103770.0,0.00338695]
[1762253361364,0.24397763,103780.0,103770.0,0.00338695]
[1762253361598,0.24397763,103780.0,103770.0,0.02765695]
[1762253361599,0.01054,103780.0,103770.0,0.02765695]
[1762253361831,0.20325535,103780.0,103770.0,0.02765695]
[1762253362053,0.20779535,103780.0,103770.0,0.00338695]
[1762253363988,0.24397763,103780.0,103770.0,0.00338695]
[1762253364637,0.24097763,103780.0,103770.0,0.00238695]
[1762253364835,0.23997763,103780.0,103770.0,0.00038695]
[1762253366018,0.24297763,103780.0,103770.0,0.00138695]
[1762253367025,0.20225535,103780.0,103770.0,0.00138695]
[1762253367793,0.20679535,103780.0,103770.0,0.00138695]
[1762253368258,0.20225535,103780.0,103770.0,0.00138695]
[1762253368705,0.24297763,103780.0,103770.0,0.00138695]
[1762253369447,0.3384567,103780.0,103770.0,0.00138695]
[1762253369650,0.40977256,103780.0,103770.0,0.00138695]
[1762253370065,0.19277998,103750.0,103730.0,0.07259]
[1762253370244,0.19277998,103750.0,103730.0,0.02532747]
[1762253371126,0.19519966,103740.0,103730.0,0.02532747]
[1762253371335,0.19519966,103740.0,103730.0,0.00048747]
[1762253371477,0.00241,103740.0,103730.0,0.00148747]
[1762253372009,0.01,103750.0,103730.0,0.03440747]
[1762253372388,0.22077182,103750.0,103730.0,0.03440747]
[1762253372611,0.22318182,103750.0,103730.0,0.03440747]
[1762253372806,0.01,103750.0,103730.0,0.03440747]
[1762253373011,0.01,103750.0,103740.0,0.03292]
[1762253373212,0.012,103750.0,103740.0,0.03292]
[1762253373419,0.002,103750.0,103740.0,0.08067]
[1762253373820,0.19275651,103760.0,103740.0,0.03292]
[1762253374294,0.002,103750.0,103740.0,0.03292]
[1762253374503,0.19278966,103740.0,103730.0,0.00048747]
[1762253374678,0.325958,103740.0,103730.0,0.00048747]
[1762253374916,0.23379194,103740.0,103730.0,0.00048747]
[1762253376374,0.19519966,103740.0,103730.0,0.00048747]
[1762253376824,0.19719966,103740.0,103730.0,0.00048747]
[1762253376978,0.19719966,103740.0,103730.0,0.00145437]
[1762253377875,0.7361565,103780.0,103730.0,0.61493262]
[1762253377876,0.02894622,103780.0,103730.0,0.61493262]
[1762253378081,0.02894622,103780.0,103740.0,0.09994896]
[1762253378082,0.20237405,103770.0,103740.0,0.09994896]
[1762253378286,0.20237405,103770.0,103750.0,0.34]
[1762253378287,0.20237342,103770.0,103750.0,0.34]
[1762253378491,0.20237342,103770.0,103730.0,0.00048747]
[1762253378492,0.00241,103750.0,103730.0,0.02373747]
[1762253378697,0.00241,103750.0,103730.0,0.36373747]
[1762253378917,0.00241,103750.0,103730.0,0.41148747]
[1762253379604,0.00241,103750.0,103730.0,0.60429554]
[1762253379812,0.2289216,103770.0,103740.0,0.42067]
[1762253380041,0.002,103750.0,103740.0,0.42067]
[1762253380246,0.002,103750.0,103740.0,0.37292]
[1762253381614,0.24096829,103770.0,103740.0,0.37292]
[1762253381815,0.03859228,103770.0,103740.0,0.56570877]
[1762253382026,0.23732814,103770.0,103740.0,0.37492]
[1762253382433,0.23732858,103770.0,103740.0,0.37492]
[1762253382663,0.04218228,103770.0,103750.0,0.04775]
[1762253382882,0.006,103770.0,103750.0,0.04775]
[1762253383129,0.009,103770.0,103750.0,0.04775]
[1762253383481,0.2041441,103770.0,103760.0,0.00024166]
[1762253383686,0.20476155,103780.0,103760.0,0.00024166]
[1762253384111,0.00541,103770.0,103760.0,0.00024166]
[1762253384314,0.00241,103770.0,103760.0,0.00024166]
[1762253384718,0.00541,103770.0,103760.0,0.00124166]
[1762253384968,0.01041,103770.0,103760.0,0.00124166]
[1762253385390,0.008,103770.0,103760.0,0.03406166]
[1762253385564,0.008,103770.0,103760.0,0.08214166]
[1762253385565,0.003,103770.0,103760.0,0.08214166]
[1762253385969,0.008,103770.0,103760.0,0.08414166]
[1762253386416,0.003,103770.0,103760.0,0.08214166]
[1762253386845,0.005,103770.0,103760.0,0.08414166]
[1762253387095,0.002,103770.0,103760.0,0.61589416]
[1762253387279,0.004,103770.0,103760.0,0.61589416]
[1762253387480,0.004,103770.0,103760.0,0.42314166]
[1762253387638,0.004,103770.0,103760.0,0.37506166]
[1762253387851,0.004,103770.0,103760.0,0.34224166]
[1762253387852,0.00432,103770.0,103760.0,0.34224166]
[1762253388464,0.00232,103770.0,103760.0,0.34024166]
[1762253388880,0.00432,103770.0,103760.0,0.34424166]
[1762253389081,0.00432,103770.0,103760.0,0.00424166]
[1762253389305,0.00032,103770.0,103760.0,0.00024166]
[1762253389730,0.00232,103770.0,103760.0,0.00324166]
[1762253389942,0.00232,103770.0,103760.0,0.00224166]
[1762253390151,0.00332,103770.0,103760.0,0.00224166]
[1762253391139,0.00185513,103770.0,103760.0,0.00224166]
[1762253391385,0.19458906,103770.0,103760.0,0.00224166]
[1762253392219,0.00185513,103770.0,103760.0,0.00224166]
[1762253392823,0.00185513,103770.0,103760.0,0.22781416]
[1762253393146,0.00185513,103770.0,103760.0,0.03506166]
[1762253393515,0.00185513,103770.0,103760.0,0.00224166]
[1762253393707,0.00185513,103770.0,103760.0,0.19499416]
[1762253394143,0.00185513,103770.0,103760.0,0.61589416]
[1762253395364,0.001,103770.0,103760.0,0.61389416]
[1762253395565,0.003,103770.0,103760.0,0.61489416]
[1762253395964,0.002,103770.0,103760.0,0.61489416]
[1762253396165,0.03618228,103800.0,103770.0,0.54235591]
[1762253396395,0.22886223,103800.0,103770.0,0.36344]
[1762253396623,0.28817811,103790.0,103760.0,0.00424166]
[1762253396823,0.28818076,103790.0,103760.0,0.34424166]
[1762253397151,0.29781559,103790.0,103760.0,0.34324166]
[1762253397379,0.29781559,103790.0,103760.0,0.3433878]
[1762253397618,0.22889842,103780.0,103770.0,0.001]
[1762253397832,0.03618228,103780.0,103770.0,0.001]
[1762253398036,0.22889781,103780.0,103770.0,0.002]
[1762253398615,0.22889781,103780.0,103760.0,0.0003878]
[1762253398777,0.23089781,103780.0,103770.0,0.001]
[1762253399782,0.03818228,103780.0,103770.0,0.001]
[1762253399986,0.23089763,103780.0,103770.0,0.001]
[1762253400183,0.002,103780.0,103770.0,0.001]
[1762253400690,0.002,103780.0,103770.0,0.03382]
[1762253400863,0.002,103780.0,103770.0,0.27463393]
[1762253401020,0.002,103780.0,103770.0,0.08013393]
[1762253401230,0.002,103780.0,103770.0,0.11295393]
[1762253401443,0.002,103780.0,103770.0,0.03282]
[1762253401636,0.03373,103780.0,103760.0,0.0003878]
[1762253401839,0.002,103780.0,103770.0,0.22555393]
[1762253402414,0.002,103780.0,103760.0,0.19313965]
[1762253402415,0.27426593,103780.0,103760.0,0.0003878]
[1762253402614,0.02464,103770.0,103760.0,0.0003878]
[1762253403181,0.24910393,103770.0,103760.0,0.0003878]
[1762253403435,0.29692393,103770.0,103760.0,0.0003878]
[1762253404226,0.29692393,103770.0,103760.0,0.0033878]
[1762253404747,0.29692393,103770.0,103760.0,0.0013878]
[1762253404952,0.29892393,103770.0,103760.0,0.0043878]
[1762253405365,0.002,103770.0,103760.0,0.0852878]
[1762253405657,0.002,103770.0,103760.0,0.39648305]
[1762253405855,0.05837,103770.0,103760.0,0.3443878]
[1762253407423,0.02664,103770.0,103760.0,0.3772078]
[1762253408907,0.02664,103770.0,103760.0,0.6180403]
[1762253408908,0.002,103770.0,103760.0,0.6180403]
[1762253409063,0.002,103770.0,103760.0,0.4252878]
[1762253409265,0.24179323,103790.0,103760.0,0.4252878]
[1762253409577,0.24053633,103780.0,103760.0,0.4252878]
[1762253409783,0.02464,103770.0,103760.0,0.3772078]
[1762253409988,0.02464,103770.0,103760.0,0.3742078]
[1762253410369,0.02464,103770.0,103760.0,0.0352078]
[1762253410578,0.10419,103770.0,103760.0,0.0023878]
[1762253410778,0.10419,103770.0,103760.0,0.0003878]
[1762253410981,0.02464,103770.0,103760.0,0.0332078]
[1762253411185,0.02564,103770.0,103760.0,0.0832878]
[1762253411387,0.22423677,103790.0,103760.0,0.27603729]
[1762253411647,0.03618228,103790.0,103770.0,0.04808]
[1762253411958,0.001,103780.0,103770.0,0.04808]
[1762253412196,0.22695222,103800.0,103770.0,0.24081371]
[1762253412606,0.01531,103780.0,103760.0,0.20577491]
[1762253412818,0.01531,103780.0,103760.0,0.0504678]
[1762253413036,0.01531,103770.0,103760.0,0.0003878]
[1762253413463,0.01531,103770.0,103760.0,0.0013878]
[1762253413887,0.01531,103770.0,103760.0,0.0003878]
[1762253414188,0.01631,103770.0,103760.0,0.0033878]
[1762253414601,0.22435393,103770.0,103760.0,0.0033878]
[1762253415137,0.01631,103770.0,103760.0,0.0346678]
[1762253415513,0.001,103770.0,103760.0,0.0356678]
[1762253417352,0.0161,103770.0,103760.0,0.0043878]
[1762253417553,0.20883393,103770.0,103760.0,0.0043878]
[1762253417765,0.0161,103770.0,103760.0,0.0043878]
[1762253419435,0.001,103770.0,103760.0,0.0356678]
[1762253420043,0.0161,103770.0,103760.0,0.0356678]
[1762253420276,0.001,103770.0,103760.0,0.0356678]
[1762253420680,0.0161,103770.0,103760.0,0.0356678]
[1762253421044,0.0161,103770.0,103760.0,0.0043878]
[1762253423089,0.001,103770.0,103760.0,0.0356678]
[1762253423303,0.0161,103770.0,103760.0,0.0043878]
[1762253423933,0.0161,103770.0,103760.0,0.0356678]
[1762253424135,0.0161,103770.0,103760.0,0.0043878]
[1762253424336,0.0312,103770.0,103760.0,0.0043878]
[1762253424513,0.0161,103770.0,103760.0,0.0043878]
[1762253424945,0.0161,103770.0,103760.0,0.0356678]
[1762253425151,0.0161,103770.0,103760.0,0.0043878]
[1762253425360,0.20883393,103770.0,103760.0,0.0043878]
[1762253425588,0.22393393,103770.0,103760.0,0.0043878]
[1762253426150,0.0312,103770.0,103760.0,0.0043878]